[Event "Titled Tuesday Blitz October 19 2021"]
[White "Solon, Nathan"]
[Black "Sanal, Vahap"]
[WhiteFideId "2017229"]
[BlackFideId "6300545"]
[WhiteElo "2678"]
[BlackElo "2492"]
[Result "0-1"]
[Round "05"]
[TimeControl "180+1"]
[Date "2021.10.19"]
[WhiteClock "0:00:03"]
[BlackClock "0:00:54"]

1. d4 {[%clk 0:03:00]}  Nf6 {[%clk 0:02:58]} 2. Bg5 {[%clk 0:03:00]}  d5 {[%clk 0:02:55]} 3. e3 {[%clk 0:03:00]}  e6 {[%clk 0:02:49]} 4. Bd3 {[%clk 0:02:51]}  c5 {[%clk 0:02:49]} 5. c3 {[%clk 0:02:51]}  Nc6 {[%clk 0:02:49]} 6. Nf3 {[%clk 0:02:47]}  Be7 {[%clk 0:02:48]} 7. Nbd2 {[%clk 0:02:46]}  h6 {[%clk 0:02:49]} 8. Bh4 {[%clk 0:02:43]}  Bd7 {[%clk 0:02:48]} 9. O-O {[%clk 0:02:39]}  Qb6 {[%clk 0:02:48]} 10. Rb1 {[%clk 0:02:37]}  cxd4 {[%clk 0:02:42]} 11. exd4 {[%clk 0:02:36]}  Qc7 {[%clk 0:02:39]} 12. Re1 {[%clk 0:02:34]}  Bd6 {[%clk 0:02:36]} 13. Bg3 {[%clk 0:02:18]}  Bxg3 {[%clk 0:02:36]} 14. hxg3 {[%clk 0:02:19]}  a6 {[%clk 0:02:34]} 15. Ne5 {[%clk 0:02:17]}  Nxe5 {[%clk 0:02:33]} 16. dxe5 {[%clk 0:02:17]}  Ng8 {[%clk 0:02:33]} 17. Qg4 {[%clk 0:02:14]}  g5 {[%clk 0:02:31]} 18. Nf3 {[%clk 0:01:59]}  Ne7 {[%clk 0:02:30]} 19. Qh5 {[%clk 0:01:56]}  Rf8 {[%clk 0:02:14]} 20. Qxh6 {[%clk 0:01:53]}  g4 {[%clk 0:02:15]} 21. Nd4 {[%clk 0:01:50]}  O-O-O {[%clk 0:02:15]} 22. Qf6 {[%clk 0:01:38]}  Nc6 {[%clk 0:02:14]} 23. b4 {[%clk 0:01:29]}  Nxd4 {[%clk 0:01:54]} 24. cxd4 {[%clk 0:01:29]}  Kb8 {[%clk 0:01:55]} 25. b5 {[%clk 0:01:26]}  Qc3 {[%clk 0:01:52]} 26. bxa6 {[%clk 0:01:23]}  Qxd3 {[%clk 0:01:49]} 27. Rxb7+ {[%clk 0:01:20]}  Ka8 {[%clk 0:01:49]} 28. Qe7 {[%clk 0:01:14]}  Qc3 {[%clk 0:01:50]} 29. Reb1 {[%clk 0:01:07]}  Qc6 {[%clk 0:01:37]} 30. Qb4 {[%clk 0:00:48]}  Rc8 {[%clk 0:01:37]} 31. Rxd7 {[%clk 0:00:35]}  Qxd7 {[%clk 0:01:25]} 32. Qb7+ {[%clk 0:00:35]}  Qxb7 {[%clk 0:01:26]} 33. axb7+ {[%clk 0:00:36]}  Ka7 {[%clk 0:01:26]} 34. bxc8=Q {[%clk 0:00:36]}  Rxc8 {[%clk 0:01:27]} 35. Rb2 {[%clk 0:00:31]}  Rc1+ {[%clk 0:01:25]} 36. Kh2 {[%clk 0:00:31]}  Rd1 {[%clk 0:01:25]} 37. f3 {[%clk 0:00:20]}  Rxd4 {[%clk 0:01:23]} 38. Rf2 {[%clk 0:00:19]}  Kb6 {[%clk 0:01:17]} 39. fxg4 {[%clk 0:00:13]}  Rxg4 {[%clk 0:01:18]} 40. Rxf7 {[%clk 0:00:13]}  Rg5 {[%clk 0:01:19]} 41. g4 {[%clk 0:00:11]}  d4 {[%clk 0:01:18]} 42. Rd7 {[%clk 0:00:10]}  Kc5 {[%clk 0:01:14]} 43. Kg3 {[%clk 0:00:10]}  Rxe5 {[%clk 0:01:15]} 44. Kf4 {[%clk 0:00:11]}  Re2 {[%clk 0:01:12]} 45. a4 {[%clk 0:00:11]}  e5+ {[%clk 0:01:11]} 46. Kf3 {[%clk 0:00:11]}  Re3+ {[%clk 0:01:11]} 47. Kf2 {[%clk 0:00:11]}  Re4 {[%clk 0:01:09]} 48. Kf3 {[%clk 0:00:10]}  Rf4+ {[%clk 0:01:09]} 49. Kg3 {[%clk 0:00:10]}  Rf8 {[%clk 0:01:08]} 50. g5 {[%clk 0:00:09]}  e4 {[%clk 0:01:09]} 51. g6 {[%clk 0:00:09]}  d3 {[%clk 0:01:02]} 52. g7 {[%clk 0:00:09]}  Re8 {[%clk 0:01:02]} 53. Re7 {[%clk 0:00:07]}  Rg8 {[%clk 0:00:55]} 54. Rxe4 {[%clk 0:00:07]}  d2 {[%clk 0:00:55]} 55. Re5+ {[%clk 0:00:03]}  Kd6 {[%clk 0:00:54]} 0-1


[Site "https://www.chess.com"]

[Event "Titled Tuesday Blitz October 19 2021"]
[White "Svane, Rasmus"]
[Black "Goltsev, Dmitry"]
[WhiteFideId "4657101"]
[BlackFideId "24176710"]
[WhiteElo "2643"]
[BlackElo "2334"]
[Result "1-0"]
[Round "05"]
[TimeControl "180+1"]
[Date "2021.10.19"]
[WhiteClock "0:00:33"]
[BlackClock "0:00:01"]

1. Nf3 {[%clk 0:03:00]}  d5 {[%clk 0:02:58]} 2. g3 {[%clk 0:03:00]}  c6 {[%clk 0:02:57]} 3. Bg2 {[%clk 0:03:00]}  Nf6 {[%clk 0:02:58]} 4. O-O {[%clk 0:03:00]}  g6 {[%clk 0:02:58]} 5. c4 {[%clk 0:03:00]}  Bg7 {[%clk 0:02:58]} 6. Qb3 {[%clk 0:03:00]}  O-O {[%clk 0:02:58]} 7. d4 {[%clk 0:03:00]}  dxc4 {[%clk 0:02:55]} 8. Qxc4 {[%clk 0:02:59]}  Nbd7 {[%clk 0:02:56]} 9. Qc2 {[%clk 0:02:56]}  Nb6 {[%clk 0:02:56]} 10. e4 {[%clk 0:02:55]}  Bg4 {[%clk 0:02:55]} 11. Be3 {[%clk 0:02:55]}  Qc8 {[%clk 0:02:53]} 12. Nc3 {[%clk 0:02:51]}  Bh3 {[%clk 0:02:53]} 13. Rfd1 {[%clk 0:02:50]}  Nc4 {[%clk 0:02:38]} 14. Bf4 {[%clk 0:02:49]}  Bxg2 {[%clk 0:02:37]} 15. Kxg2 {[%clk 0:02:50]}  Nh5 {[%clk 0:02:35]} 16. Bg5 {[%clk 0:02:43]}  f6 {[%clk 0:02:29]} 17. Qe2 {[%clk 0:02:28]}  Nxb2 {[%clk 0:02:24]} 18. Qxb2 {[%clk 0:02:26]}  fxg5 {[%clk 0:02:24]} 19. Nxg5 {[%clk 0:02:17]}  Qg4 {[%clk 0:02:16]} 20. Nh3 {[%clk 0:01:26]}  Rf7 {[%clk 0:01:56]} 21. Qe2 {[%clk 0:01:25]}  Qd7 {[%clk 0:01:40]} 22. Ng5 {[%clk 0:01:24]}  Raf8 {[%clk 0:00:56]} 23. Nxf7 {[%clk 0:01:22]}  Rxf7 {[%clk 0:00:56]} 24. e5 {[%clk 0:01:14]}  Qf5 {[%clk 0:00:43]} 25. Ne4 {[%clk 0:01:10]}  Bh6 {[%clk 0:00:28]} 26. Rd3 {[%clk 0:01:09]}  Qd7 {[%clk 0:00:22]} 27. Nc3 {[%clk 0:01:00]}  Rf4 {[%clk 0:00:19]} 28. d5 {[%clk 0:00:48]}  Rh4 {[%clk 0:00:11]} 29. Kg1 {[%clk 0:00:48]}  Nf4 {[%clk 0:00:07]} 30. gxf4 {[%clk 0:00:44]}  Bxf4 {[%clk 0:00:08]} 31. h3 {[%clk 0:00:35]}  Rxh3 {[%clk 0:00:08]} 32. e6 {[%clk 0:00:35]}  Bh2+ {[%clk 0:00:01]} 33. Kg2 {[%clk 0:00:33]} 1-0


[Site "https://www.chess.com"]

[Event "Titled Tuesday Blitz October 19 2021"]
[White "Weichhold, Pawel"]
[Black "Yilmaz, Mustafa"]
[WhiteFideId "1139703"]
[BlackFideId "6302718"]
[WhiteElo "2309"]
[BlackElo "2518"]
[Result "0-1"]
[Round "05"]
[TimeControl "180+1"]
[Date "2021.10.19"]
[WhiteClock "0:00:21"]
[BlackClock "0:00:23"]

1. e4 {[%clk 0:02:58]}  e5 {[%clk 0:02:56]} 2. Nf3 {[%clk 0:02:55]}  Nc6 {[%clk 0:02:56]} 3. Bb5 {[%clk 0:02:54]}  a6 {[%clk 0:02:56]} 4. Ba4 {[%clk 0:02:54]}  Nf6 {[%clk 0:02:57]} 5. O-O {[%clk 0:02:54]}  Be7 {[%clk 0:02:57]} 6. Re1 {[%clk 0:02:54]}  b5 {[%clk 0:02:57]} 7. Bb3 {[%clk 0:02:54]}  O-O {[%clk 0:02:58]} 8. c3 {[%clk 0:02:54]}  d5 {[%clk 0:02:55]} 9. d4 {[%clk 0:02:55]}  Nxe4 {[%clk 0:02:49]} 10. dxe5 {[%clk 0:02:53]}  Be6 {[%clk 0:02:47]} 11. Be3 {[%clk 0:02:47]}  Na5 {[%clk 0:02:44]} 12. Bc2 {[%clk 0:02:46]}  c5 {[%clk 0:02:37]} 13. Nbd2 {[%clk 0:02:44]}  Nxd2 {[%clk 0:02:32]} 14. Bxd2 {[%clk 0:02:29]}  Bg4 {[%clk 0:02:27]} 15. h3 {[%clk 0:02:27]}  Bh5 {[%clk 0:02:27]} 16. g4 {[%clk 0:02:26]}  Bg6 {[%clk 0:02:27]} 17. Bf5 {[%clk 0:02:27]}  Nc4 {[%clk 0:02:18]} 18. b3 {[%clk 0:02:22]}  Nb6 {[%clk 0:02:14]} 19. Kg2 {[%clk 0:02:18]}  Qc7 {[%clk 0:02:06]} 20. h4 {[%clk 0:02:14]}  Qc6 {[%clk 0:01:58]} 21. h5 {[%clk 0:02:05]}  Bxf5 {[%clk 0:01:58]} 22. gxf5 {[%clk 0:02:06]}  a5 {[%clk 0:01:37]} 23. Kh2 {[%clk 0:02:06]}  Rfe8 {[%clk 0:01:31]} 24. Rg1 {[%clk 0:01:59]}  Bf8 {[%clk 0:01:31]} 25. Bf4 {[%clk 0:01:58]}  b4 {[%clk 0:01:24]} 26. cxb4 {[%clk 0:01:43]}  axb4 {[%clk 0:01:24]} 27. Rg3 {[%clk 0:01:42]}  d4 {[%clk 0:01:23]} 28. Qd3 {[%clk 0:01:25]}  Nd5 {[%clk 0:01:19]} 29. Bd2 {[%clk 0:01:20]}  f6 {[%clk 0:00:59]} 30. Rag1 {[%clk 0:00:51]}  fxe5 {[%clk 0:00:54]} 31. h6 {[%clk 0:00:51]}  e4 {[%clk 0:00:52]} 32. Qc4 {[%clk 0:00:41]}  exf3 {[%clk 0:00:42]} 33. hxg7 {[%clk 0:00:29]}  Bd6 {[%clk 0:00:41]} 34. f6 {[%clk 0:00:28]}  Ra7 {[%clk 0:00:34]} 35. Kh1 {[%clk 0:00:24]}  Bxg3 {[%clk 0:00:34]} 36. Rxg3 {[%clk 0:00:25]}  Rf7 {[%clk 0:00:32]} 37. Rg5 {[%clk 0:00:25]}  Nxf6 {[%clk 0:00:31]} 38. Rf5 {[%clk 0:00:23]}  Qe6 {[%clk 0:00:29]} 39. Qd3 {[%clk 0:00:22]}  Qe2 {[%clk 0:00:25]} 40. Qxe2 {[%clk 0:00:20]}  fxe2 {[%clk 0:00:25]} 41. Be1 {[%clk 0:00:21]}  Ne4 {[%clk 0:00:23]} 0-1


[Site "https://www.chess.com"]

[Event "Titled Tuesday Blitz October 19 2021"]
[White "Alavkin, Arseny"]
[Black "Timmermans, Mark"]
[WhiteFideId "4120612"]
[BlackFideId "1026399"]
[WhiteElo "2391"]
[BlackElo "2460"]
[Result "0-1"]
[Round "06"]
[TimeControl "180+1"]
[Date "2021.10.19"]
[WhiteClock "0:01:25"]
[BlackClock "0:01:03"]

1. d4 {[%clk 0:03:00]}  Nf6 {[%clk 0:02:54]} 2. c4 {[%clk 0:03:00]}  e6 {[%clk 0:02:53]} 3. Nc3 {[%clk 0:02:59]}  Bb4 {[%clk 0:02:47]} 4. e3 {[%clk 0:03:00]}  Ne4 {[%clk 0:02:47]} 5. Qb3 {[%clk 0:02:59]}  c5 {[%clk 0:02:42]} 6. Bd3 {[%clk 0:02:56]}  Nxc3 {[%clk 0:02:24]} 7. bxc3 {[%clk 0:02:56]}  Ba5 {[%clk 0:02:24]} 8. Nf3 {[%clk 0:02:56]}  O-O {[%clk 0:02:21]} 9. O-O {[%clk 0:02:56]}  b6 {[%clk 0:02:20]} 10. Ba3 {[%clk 0:02:55]}  d6 {[%clk 0:02:19]} 11. Rad1 {[%clk 0:02:55]}  Qc7 {[%clk 0:02:17]} 12. e4 {[%clk 0:02:55]}  e5 {[%clk 0:02:14]} 13. d5 {[%clk 0:02:54]}  f5 {[%clk 0:02:04]} 14. exf5 {[%clk 0:02:54]}  Bxf5 {[%clk 0:02:05]} 15. Bxf5 {[%clk 0:02:54]}  Rxf5 {[%clk 0:02:06]} 16. Qc2 {[%clk 0:02:54]}  Qf7 {[%clk 0:02:05]} 17. Nd2 {[%clk 0:02:54]}  Nd7 {[%clk 0:02:01]} 18. Nb3 {[%clk 0:02:52]}  Rf8 {[%clk 0:01:58]} 19. Nxa5 {[%clk 0:02:52]}  bxa5 {[%clk 0:01:59]} 20. Rb1 {[%clk 0:02:52]}  Nb6 {[%clk 0:01:59]} 21. Qe2 {[%clk 0:02:41]}  Rf4 {[%clk 0:01:59]} 22. Bc1 {[%clk 0:02:41]}  Rh4 {[%clk 0:01:52]} 23. Bg5 {[%clk 0:02:37]}  Rh5 {[%clk 0:01:41]} 24. Be3 {[%clk 0:02:26]}  h6 {[%clk 0:01:27]} 25. g3 {[%clk 0:02:14]}  Qf5 {[%clk 0:01:25]} 26. g4 {[%clk 0:02:11]}  Qg6 {[%clk 0:01:25]} 27. f3 {[%clk 0:02:07]}  e4 {[%clk 0:01:20]} 28. f4 {[%clk 0:01:55]}  Rh4 {[%clk 0:01:17]} 29. h3 {[%clk 0:01:55]}  Rxh3 {[%clk 0:01:17]} 30. f5 {[%clk 0:01:44]}  Rg3+ {[%clk 0:01:04]} 31. Kh2 {[%clk 0:01:25]}  Qxg4 {[%clk 0:01:04]} 32. Qxg4 {[%clk 0:01:26]}  Rxg4 {[%clk 0:01:05]} 33. Bf4 {[%clk 0:01:25]}  Nxc4 {[%clk 0:01:05]} 34. Bg3 {[%clk 0:01:25]}  Nd2 {[%clk 0:01:03]} 0-1


[Site "https://www.chess.com"]

[Event "Titled Tuesday Blitz October 19 2021"]
[White "Aradhya, Garg"]
[Black "Timofeev, Artyom"]
[WhiteFideId "25006746"]
[BlackFideId "4140419"]
[WhiteElo "2146"]
[BlackElo "2591"]
[Result "1-0"]
[Round "06"]
[TimeControl "180+1"]
[Date "2021.10.19"]
[WhiteClock "0:00:28"]
[BlackClock "0:00:49"]

1. d4 {[%clk 0:03:00]}  Nf6 {[%clk 0:02:59]} 2. c4 {[%clk 0:03:01]}  b6 {[%clk 0:02:59]} 3. Nc3 {[%clk 0:02:57]}  Bb7 {[%clk 0:02:59]} 4. Nf3 {[%clk 0:02:58]}  d5 {[%clk 0:02:57]} 5. cxd5 {[%clk 0:02:46]}  Nxd5 {[%clk 0:02:56]} 6. Qc2 {[%clk 0:02:47]}  e6 {[%clk 0:02:53]} 7. e4 {[%clk 0:02:46]}  Nxc3 {[%clk 0:02:53]} 8. bxc3 {[%clk 0:02:46]}  Be7 {[%clk 0:02:53]} 9. Bb5+ {[%clk 0:02:45]}  c6 {[%clk 0:02:52]} 10. Bd3 {[%clk 0:02:46]}  O-O {[%clk 0:02:50]} 11. O-O {[%clk 0:02:46]}  c5 {[%clk 0:02:50]} 12. Qe2 {[%clk 0:02:43]}  Nc6 {[%clk 0:02:47]} 13. Bb2 {[%clk 0:02:06]}  Qc7 {[%clk 0:02:34]} 14. Rad1 {[%clk 0:02:01]}  Rfe8 {[%clk 0:02:32]} 15. d5 {[%clk 0:02:00]}  exd5 {[%clk 0:02:08]} 16. exd5 {[%clk 0:02:00]}  Na5 {[%clk 0:01:54]} 17. Qc2 {[%clk 0:00:57]}  h6 {[%clk 0:01:53]} 18. c4 {[%clk 0:00:57]}  Bd6 {[%clk 0:01:53]} 19. Qc3 {[%clk 0:00:55]}  f6 {[%clk 0:01:52]} 20. Bg6 {[%clk 0:00:55]}  Re7 {[%clk 0:01:51]} 21. Rfe1 {[%clk 0:00:51]}  Ba6 {[%clk 0:01:47]} 22. Rxe7 {[%clk 0:00:50]}  Qxe7 {[%clk 0:01:46]} 23. Re1 {[%clk 0:00:51]}  Qd7 {[%clk 0:01:46]} 24. Nd2 {[%clk 0:00:43]}  Be5 {[%clk 0:01:43]} 25. Rxe5 {[%clk 0:00:38]}  fxe5 {[%clk 0:01:43]} 26. Qxe5 {[%clk 0:00:39]}  Nxc4 {[%clk 0:01:34]} 27. Nxc4 {[%clk 0:00:37]}  Bxc4 {[%clk 0:01:34]} 28. Bf5 {[%clk 0:00:38]}  Qb7 {[%clk 0:01:29]} 29. Be6+ {[%clk 0:00:38]}  Kh7 {[%clk 0:01:12]} 30. Qe4+ {[%clk 0:00:34]}  g6 {[%clk 0:01:12]} 31. Qxc4 {[%clk 0:00:34]}  Re8 {[%clk 0:01:12]} 32. h4 {[%clk 0:00:34]}  Qc7 {[%clk 0:01:09]} 33. h5 {[%clk 0:00:33]}  Rxe6 {[%clk 0:00:48]} 34. dxe6 {[%clk 0:00:31]}  Qd6 {[%clk 0:00:49]} 35. hxg6+ {[%clk 0:00:28]}  Kxg6 {[%clk 0:00:49]} 36. Qg4+ {[%clk 0:00:28]} 1-0


[Site "https://www.chess.com"]

[Event "Titled Tuesday Blitz October 19 2021"]
[White "Ceres, Dragos"]
[Black "Abarca Gonzalez, Nicolas"]
[WhiteFideId "13905864"]
[BlackFideId "3409422"]
[WhiteElo "2094"]
[BlackElo "2504"]
[Result "0-1"]
[Round "06"]
[TimeControl "180+1"]
[Date "2021.10.19"]
[WhiteClock "0:00:18"]
[BlackClock "0:02:10"]

1. e4 {[%clk 0:03:00]}  c5 {[%clk 0:03:00]} 2. Nf3 {[%clk 0:02:54]}  d6 {[%clk 0:03:00]} 3. d4 {[%clk 0:02:54]}  cxd4 {[%clk 0:03:01]} 4. Nxd4 {[%clk 0:02:55]}  Nf6 {[%clk 0:03:00]} 5. Nc3 {[%clk 0:02:55]}  g6 {[%clk 0:02:59]} 6. Be2 {[%clk 0:02:54]}  Bg7 {[%clk 0:02:58]} 7. Be3 {[%clk 0:02:54]}  O-O {[%clk 0:02:57]} 8. Qd2 {[%clk 0:02:55]}  Nc6 {[%clk 0:02:56]} 9. O-O-O {[%clk 0:02:55]}  Nxd4 {[%clk 0:02:56]} 10. Bxd4 {[%clk 0:02:55]}  Be6 {[%clk 0:02:57]} 11. Kb1 {[%clk 0:02:55]}  Qc7 {[%clk 0:02:56]} 12. h4 {[%clk 0:02:52]}  Rfc8 {[%clk 0:02:54]} 13. f3 {[%clk 0:02:51]}  Qa5 {[%clk 0:02:53]} 14. g4 {[%clk 0:02:43]}  Rxc3 {[%clk 0:02:49]} 15. Qxc3 {[%clk 0:02:38]}  Qxa2+ {[%clk 0:02:49]} 16. Kc1 {[%clk 0:02:39]}  Qa1+ {[%clk 0:02:49]} 17. Kd2 {[%clk 0:02:38]}  Qa4 {[%clk 0:02:49]} 18. b3 {[%clk 0:02:17]}  Nxe4+ {[%clk 0:02:47]} 19. fxe4 {[%clk 0:02:16]}  Qxd4+ {[%clk 0:02:48]} 20. Qxd4 {[%clk 0:02:15]}  Bxd4 {[%clk 0:02:49]} 21. c3 {[%clk 0:02:04]}  Be5 {[%clk 0:02:47]} 22. c4 {[%clk 0:01:50]}  a5 {[%clk 0:02:44]} 23. Rb1 {[%clk 0:01:36]}  Kg7 {[%clk 0:02:38]} 24. h5 {[%clk 0:01:35]}  g5 {[%clk 0:02:36]} 25. Kd3 {[%clk 0:01:28]}  a4 {[%clk 0:02:28]} 26. bxa4 {[%clk 0:01:13]}  Rxa4 {[%clk 0:02:29]} 27. Bf3 {[%clk 0:00:58]}  Ra3+ {[%clk 0:02:25]} 28. Ke2 {[%clk 0:00:56]}  Bxc4+ {[%clk 0:02:26]} 29. Kf2 {[%clk 0:00:57]}  Ra2+ {[%clk 0:02:24]} 30. Ke1 {[%clk 0:00:49]}  Bg3+ {[%clk 0:02:19]} 31. Kd1 {[%clk 0:00:49]}  Rf2 {[%clk 0:02:20]} 32. Rb4 {[%clk 0:00:35]}  Bd3 {[%clk 0:02:14]} 33. Rh3 {[%clk 0:00:18]}  Rxf3 {[%clk 0:02:12]} 34. Rb3 {[%clk 0:00:18]}  Be2+ {[%clk 0:02:10]} 0-1


[Site "https://www.chess.com"]

[Event "Titled Tuesday Blitz October 19 2021"]
[White "Demchenko, Anton"]
[Black "Svane, Rasmus"]
[WhiteFideId "4160258"]
[BlackFideId "4657101"]
[WhiteElo "2583"]
[BlackElo "2643"]
[Result "1-0"]
[Round "06"]
[TimeControl "180+1"]
[Date "2021.10.19"]
[WhiteClock "0:01:56"]
[BlackClock "0:00:31"]

1. e4 {[%clk 0:03:00]}  c6 {[%clk 0:03:00]} 2. d4 {[%clk 0:03:01]}  d5 {[%clk 0:03:01]} 3. e5 {[%clk 0:03:01]}  Bf5 {[%clk 0:03:01]} 4. Bd3 {[%clk 0:03:01]}  Bxd3 {[%clk 0:03:01]} 5. Qxd3 {[%clk 0:03:02]}  Qa5+ {[%clk 0:03:01]} 6. Nd2 {[%clk 0:02:57]}  e6 {[%clk 0:02:56]} 7. Nf3 {[%clk 0:02:57]}  Qa6 {[%clk 0:02:56]} 8. c4 {[%clk 0:02:57]}  c5 {[%clk 0:02:49]} 9. O-O {[%clk 0:02:51]}  Nc6 {[%clk 0:02:49]} 10. dxc5 {[%clk 0:02:49]}  Bxc5 {[%clk 0:02:44]} 11. a3 {[%clk 0:02:49]}  Rd8 {[%clk 0:02:12]} 12. Qc2 {[%clk 0:02:34]}  Be7 {[%clk 0:01:36]} 13. cxd5 {[%clk 0:02:27]}  Rxd5 {[%clk 0:01:37]} 14. Ne4 {[%clk 0:02:27]}  f5 {[%clk 0:00:53]} 15. exf6 {[%clk 0:02:24]}  Nxf6 {[%clk 0:00:52]} 16. Neg5 {[%clk 0:02:24]}  Nd8 {[%clk 0:00:49]} 17. Re1 {[%clk 0:02:23]}  O-O {[%clk 0:00:46]} 18. Be3 {[%clk 0:02:15]}  h6 {[%clk 0:00:45]} 19. Nh3 {[%clk 0:02:14]}  Rf5 {[%clk 0:00:45]} 20. Nd4 {[%clk 0:02:13]}  Rc5 {[%clk 0:00:39]} 21. Qg6 {[%clk 0:02:10]}  Nf7 {[%clk 0:00:35]} 22. Nxe6 {[%clk 0:01:57]}  Ne5 {[%clk 0:00:31]} 23. Qxg7# {[%clk 0:01:56]} 1-0


[Site "https://www.chess.com"]

[Event "Titled Tuesday Blitz October 19 2021"]
[White "Gaehwiler, Gabriel"]
[Black "Holt, Conrad"]
[WhiteFideId "1314530"]
[BlackFideId "2034387"]
[WhiteElo "2320"]
[BlackElo "2586"]
[Result "1-0"]
[Round "06"]
[TimeControl "180+1"]
[Date "2021.10.19"]
[WhiteClock "0:00:04"]
[BlackClock "0:00:02"]

1. d4 {[%clk 0:03:00]}  d5 {[%clk 0:03:00]} 2. c4 {[%clk 0:03:00]}  c6 {[%clk 0:03:00]} 3. Nf3 {[%clk 0:03:01]}  Nf6 {[%clk 0:03:00]} 4. Nc3 {[%clk 0:03:01]}  dxc4 {[%clk 0:03:00]} 5. a4 {[%clk 0:03:01]}  Bf5 {[%clk 0:03:00]} 6. Ne5 {[%clk 0:03:01]}  Nbd7 {[%clk 0:03:00]} 7. Nxc4 {[%clk 0:03:02]}  Nb6 {[%clk 0:03:00]} 8. Ne5 {[%clk 0:03:02]}  a5 {[%clk 0:03:00]} 9. g3 {[%clk 0:02:59]}  e6 {[%clk 0:02:59]} 10. Bg2 {[%clk 0:02:58]}  Bb4 {[%clk 0:02:59]} 11. O-O {[%clk 0:02:58]}  O-O {[%clk 0:02:59]} 12. e3 {[%clk 0:02:59]}  h6 {[%clk 0:02:59]} 13. Qe2 {[%clk 0:02:58]}  Bh7 {[%clk 0:02:59]} 14. Rd1 {[%clk 0:02:57]}  Nfd7 {[%clk 0:02:59]} 15. Nxd7 {[%clk 0:02:54]}  Nxd7 {[%clk 0:02:58]} 16. e4 {[%clk 0:02:55]}  Qe7 {[%clk 0:02:57]} 17. Be3 {[%clk 0:02:53]}  Rfd8 {[%clk 0:02:51]} 18. h4 {[%clk 0:02:23]}  Nf6 {[%clk 0:02:45]} 19. f3 {[%clk 0:02:17]}  Qc7 {[%clk 0:02:35]} 20. Bf2 {[%clk 0:02:16]}  Nh5 {[%clk 0:02:14]} 21. e5 {[%clk 0:02:10]}  f5 {[%clk 0:01:45]} 22. Qc4 {[%clk 0:01:29]}  Qf7 {[%clk 0:01:37]} 23. f4 {[%clk 0:01:09]}  g5 {[%clk 0:01:33]} 24. hxg5 {[%clk 0:01:05]}  hxg5 {[%clk 0:01:33]} 25. Ne2 {[%clk 0:01:00]}  Be7 {[%clk 0:01:23]} 26. Qb3 {[%clk 0:00:56]}  gxf4 {[%clk 0:01:12]} 27. Nxf4 {[%clk 0:00:55]}  Nxf4 {[%clk 0:01:11]} 28. gxf4 {[%clk 0:00:56]}  Kh8 {[%clk 0:01:10]} 29. Rd3 {[%clk 0:00:43]}  Rg8 {[%clk 0:01:08]} 30. Kf1 {[%clk 0:00:44]}  Rg4 {[%clk 0:00:59]} 31. Qxb7 {[%clk 0:00:24]}  Rag8 {[%clk 0:00:57]} 32. Bxc6 {[%clk 0:00:19]}  Rxf4 {[%clk 0:00:51]} 33. Rf3 {[%clk 0:00:19]}  Rxf3 {[%clk 0:00:45]} 34. Bxf3 {[%clk 0:00:20]}  f4 {[%clk 0:00:45]} 35. Ke2 {[%clk 0:00:19]}  Qf5 {[%clk 0:00:13]} 36. Qxe7 {[%clk 0:00:17]}  Qd3+ {[%clk 0:00:13]} 37. Ke1 {[%clk 0:00:17]}  Qxf3 {[%clk 0:00:13]} 38. Qf6+ {[%clk 0:00:17]}  Rg7 {[%clk 0:00:13]} 39. Rc1 {[%clk 0:00:12]}  Qe4+ {[%clk 0:00:07]} 40. Kd2 {[%clk 0:00:12]}  Qd3+ {[%clk 0:00:06]} 41. Ke1 {[%clk 0:00:12]}  Qe4+ {[%clk 0:00:05]} 42. Kd2 {[%clk 0:00:12]}  Qb7 {[%clk 0:00:06]} 43. Qf8+ {[%clk 0:00:09]}  Rg8 {[%clk 0:00:04]} 44. Qf6+ {[%clk 0:00:09]}  Rg7 {[%clk 0:00:05]} 45. Ke1 {[%clk 0:00:05]}  Bf5 {[%clk 0:00:02]} 46. d5 {[%clk 0:00:04]} 1-0


[Site "https://www.chess.com"]

[Event "Titled Tuesday Blitz October 19 2021"]
[White "Goltsev, Dmitry"]
[Black "Paltrinieri, Nicholas"]
[WhiteFideId "24176710"]
[BlackFideId "828262"]
[WhiteElo "2334"]
[BlackElo "2254"]
[Result "1-0"]
[Round "06"]
[TimeControl "180+1"]
[Date "2021.10.19"]
[WhiteClock "0:00:10"]
[BlackClock "0:00:05"]

1. e4 {[%clk 0:03:00]}  e6 {[%clk 0:02:59]} 2. d4 {[%clk 0:02:59]}  d5 {[%clk 0:03:00]} 3. exd5 {[%clk 0:03:00]}  exd5 {[%clk 0:03:00]} 4. Bd3 {[%clk 0:02:59]}  c5 {[%clk 0:02:56]} 5. dxc5 {[%clk 0:02:59]}  Bxc5 {[%clk 0:02:56]} 6. Nf3 {[%clk 0:02:59]}  Nf6 {[%clk 0:02:56]} 7. O-O {[%clk 0:02:59]}  O-O {[%clk 0:02:56]} 8. Bg5 {[%clk 0:02:58]}  h6 {[%clk 0:02:56]} 9. Bh4 {[%clk 0:02:46]}  g5 {[%clk 0:02:47]} 10. Nxg5 {[%clk 0:02:39]}  hxg5 {[%clk 0:02:48]} 11. Bxg5 {[%clk 0:02:40]}  Nbd7 {[%clk 0:02:32]} 12. Qf3 {[%clk 0:02:04]}  Bd6 {[%clk 0:01:49]} 13. Nc3 {[%clk 0:01:52]}  Kg7 {[%clk 0:01:10]} 14. Nxd5 {[%clk 0:01:47]}  Be5 {[%clk 0:01:10]} 15. Qf5 {[%clk 0:01:36]}  Re8 {[%clk 0:00:57]} 16. Rae1 {[%clk 0:01:31]}  Nf8 {[%clk 0:00:34]} 17. Qf3 {[%clk 0:00:54]}  N8d7 {[%clk 0:00:06]} 18. Re4 {[%clk 0:00:41]}  Qa5 {[%clk 0:00:04]} 19. Rxe5 {[%clk 0:00:37]}  Rxe5 {[%clk 0:00:03]} 20. Bxf6+ {[%clk 0:00:36]}  Kf8 {[%clk 0:00:02]} 21. Bxe5 {[%clk 0:00:25]}  Nxe5 {[%clk 0:00:03]} 22. Qe4 {[%clk 0:00:25]}  Be6 {[%clk 0:00:03]} 23. Qxe5 {[%clk 0:00:19]}  Qxd5 {[%clk 0:00:03]} 24. Qh8+ {[%clk 0:00:19]}  Ke7 {[%clk 0:00:04]} 25. Qxa8 {[%clk 0:00:20]}  Bh3 {[%clk 0:00:04]} 26. gxh3 {[%clk 0:00:11]}  Qg5+ {[%clk 0:00:04]} 27. Kh1 {[%clk 0:00:11]}  Qd5+ {[%clk 0:00:05]} 28. f3 {[%clk 0:00:11]}  Kf6 {[%clk 0:00:05]} 29. Qh8+ {[%clk 0:00:10]}  Ke7 {[%clk 0:00:05]} 30. Qh6 {[%clk 0:00:10]}  Qd4 {[%clk 0:00:05]} 31. Qd2 {[%clk 0:00:10]}  Qf6 {[%clk 0:00:04]} 32. Qe2+ {[%clk 0:00:10]}  Kd7 {[%clk 0:00:05]} 33. Qe4 {[%clk 0:00:10]}  Kc7 {[%clk 0:00:05]} 34. Re1 {[%clk 0:00:10]} 1-0


[Site "https://www.chess.com"]